lending/lending_fUSD_20240509
["ID","MTS","AMOUNT","RATE_DAILY","PERIOD"]
[326745201,1715297455623,-500.0,0.0003041,5]
[326745202,1715297455632,-500.0,0.0003041,5]
[326745203,1715297455642,-766.08,0.0003041,5]
[326745204,1715297455652,-663.83,0.0003041,5]
[326745205,1715297455662,-500.0,0.0003041,5]
[326745206,1715297455671,-501.51,0.0003041,5]
[326745207,1715297455681,-500.0,0.0003041,5]
[326745208,1715297455690,-500.0,0.0003041,5]
[326745209,1715297455700,-500.0,0.0003041,5]
[326745210,1715297455710,-500.75,0.0003041,5]
[326745211,1715297455720,-500.0,0.0003041,5]
[326745212,1715297455729,-500.0,0.0003041,5]
[326745213,1715297455739,-500.0,0.0003041,5]
[326745214,1715297455749,-500.0,0.0003041,5]
[326745215,1715297455760,-500.0,0.0003041,5]
[326745216,1715297455769,-576.24,0.0003041,5]
[326745217,1715297455778,-662.83,0.0003041,5]
[326745218,1715297455787,-889.58,0.0003041,5]
[326745219,1715297455797,-500.0,0.0003041,5]
[326745220,1715297455806,-500.0,0.0003041,5]
[326745221,1715297455815,-500.0,0.0003041,5]
[326745222,1715297455825,-500.0,0.0003041,5]
[326745223,1715297455834,-842.01,0.0003041,5]
[326745224,1715297455844,-500.0,0.0003041,5]
[326745225,1715297455853,-978.16,0.0003041,5]
[326745226,1715297455863,-898.79,0.0003041,5]
[326745227,1715297455873,-577.33,0.0003041,5]
[326745228,1715297455882,-500.0,0.0003041,5]
[326745229,1715297455892,-734.77,0.0003041,5]
[326745230,1715297455901,-500.0,0.0003041,5]
[326745231,1715297455911,-500.0,0.0003041,5]
[326745232,1715297455921,-500.0,0.0003041,5]
[326745233,1715297455930,-562.56,0.0003041,5]
[326745234,1715297455939,-790.18,0.0003041,5]
[326745235,1715297455949,-500.0,0.0003041,5]
[326745236,1715297455959,-500.0,0.0003041,5]
[326745237,1715297455969,-500.0,0.0003041,5]
[326745238,1715297455979,-600.13,0.0003041,5]
[326745239,1715297455988,-500.0,0.0003041,5]
[326745240,1715297455997,-500.0,0.0003041,5]
[326745241,1715297456009,-626.43,0.0003041,5]
[326745242,1715297456023,-887.81,0.0003041,5]
[326745243,1715297456032,-500.0,0.0003041,5]
[326745244,1715297456041,-500.0,0.0003041,5]
[326745245,1715297456053,-881.06,0.0003041,5]
[326745246,1715297456062,-714.06,0.0003041,5]
[326745247,1715297456072,-964.4,0.0003041,5]
[326745248,1715297456082,-500.0,0.0003041,5]
[326745249,1715297456091,-536.04,0.0003041,5]
[326745250,1715297456101,-500.0,0.0003041,5]
[326745251,1715297456111,-820.56,0.0003041,5]
[326745252,1715297456120,-500.0,0.0003041,5]
[326745253,1715297456130,-500.0,0.0003041,5]
[326745254,1715297456139,-500.0,0.0003041,5]
[326745255,1715297456148,-596.95,0.0003041,5]
[326745256,1715297456157,-321.22647184,0.0003041,5]
[326745257,1715297456167,-500.0,0.0003041,5]
[326745258,1715297456176,-851.48,0.0003041,5]
[326745259,1715297456185,-623.06,0.0003041,5]
[326745260,1715297456194,-770.98,0.0003041,5]
[326745261,1715297456204,-500.0,0.0003041,5]
[326745262,1715297456213,-500.0,0.0003041,5]
[326745263,1715297456222,-500.0,0.0003041,5]
[326745264,1715297456231,-500.0,0.0003041,5]
[326745265,1715297456240,-500.0,0.0003041,5]
[326745266,1715297456249,-500.0,0.0003041,5]
[326745267,1715297456259,-182.99490182,0.0003041,5]
[326745268,1715297456268,-500.0,0.0003041,5]
[326745269,1715297456277,-500.0,0.0003041,5]
[326745270,1715297456286,-1500.0,0.0003041,5]
[326745271,1715297456295,-500.0,0.0003041,5]
[326745272,1715297456304,-500.0,0.0003041,5]
[326745273,1715297456313,-500.0,0.0003041,5]
[326745274,1715297456323,-151.0,0.0003041,7]
[326745275,1715297456332,-291.215969,0.0003041,7]
[326745276,1715297456341,-686.45,0.0003041,5]
[326745277,1715297456350,-500.0,0.0003041,5]
[326745278,1715297456359,-500.0,0.0003041,5]
[326745279,1715297456368,-516.09,0.0003041,5]
[326745280,1715297456377,-500.0,0.0003041,5]
[326745281,1715297456387,-500.0,0.0003041,5]
[326745282,1715297456396,-500.0,0.0003041,5]
[326745283,1715297456405,-935.28,0.0003041,5]
[326745284,1715297456414,-500.0,0.0003041,5]
[326745285,1715297456423,-1078.4,0.0003041,5]
[326745286,1715297456433,-151.534746,0.0003041,7]
[326745287,1715297456442,-500.0,0.0003041,5]
[326745288,1715297456451,-500.0,0.0003041,5]
[326745289,1715297456460,-500.0,0.0003041,5]
[326745290,1715297456469,-763.25,0.0003041,5]
[326745291,1715297456479,-500.0,0.0003041,5]
[326745292,1715297456488,-584.37,0.0003041,5]
[326745293,1715297456498,-1260.64,0.0003041,5]
[326745294,1715297456508,-500.0,0.0003041,5]
[326745295,1715297456517,-500.0,0.0003041,5]
[326745296,1715297456526,-906.64,0.0003041,5]
[326745297,1715297456613,-500.0,0.0003041,5]
[326745298,1715297456622,-711.25,0.0003041,5]
[326745299,1715297456631,-500.0,0.0003041,5]
[326745300,1715297456640,-515.12778855,0.0003041,5]
[326745301,1715297456649,-500.0,0.0003041,5]
[326745302,1715297456659,-500.0,0.0003041,5]
[326745303,1715297456668,-500.0,0.0003041,5]
[326745304,1715297456677,-500.0,0.0003041,5]
[326745305,1715297456686,-500.0,0.0003041,5]
[326745306,1715297456694,-500.0,0.0003041,5]
[326745307,1715297456704,-500.0,0.0003041,5]
[326745308,1715297456713,-887.86,0.0003041,5]
[326745309,1715297456722,-500.0,0.0003041,5]
[326745310,1715297456731,-500.0,0.0003041,5]
[326745311,1715297456740,-500.0,0.0003041,5]
[326745312,1715297456749,-500.0,0.0003041,5]
[326745313,1715297456759,-500.0,0.0003041,5]
[326745314,1715297456767,-498.39357274,0.0003041,5]
[326745315,1715297456777,-903.22,0.0003041,5]
[326745316,1715297456787,-500.0,0.0003041,5]
[326745317,1715297456796,-500.0,0.0003041,5]
[326745318,1715297456805,-500.0,0.0003041,5]
[326745319,1715297456814,-500.0,0.0003041,5]
[326745320,1715297456823,-853.61,0.0003041,5]
[326745321,1715297456831,-1323.39,0.0003041,5]
[326745322,1715297456840,-500.0,0.0003041,5]
[326745323,1715297456850,-500.0,0.0003041,5]
[326745324,1715297456859,-282.44984637,0.0003041,5]
[326745325,1715297456868,-500.0,0.0003041,5]
[326745326,1715297456877,-151.0,0.0003041,7]
[326745327,1715297456886,-151.0,0.0003041,7]
[326745328,1715297456895,-618.86,0.0003041,5]
[326745329,1715297456904,-977.85,0.0003041,5]
[326745330,1715297456913,-500.0,0.0003041,5]
[326745331,1715297456922,-500.0,0.0003041,5]
[326745332,1715297456930,-500.0,0.0003041,5]
[326745333,1715297456940,-500.0,0.0003041,5]
[326745334,1715297456949,-500.0,0.0003041,5]
[326745335,1715297456958,-500.0,0.0003041,5]
[326745336,1715297456966,-960.09,0.0003041,5]
[326745337,1715297456976,-500.0,0.0003041,5]
[326745338,1715297456985,-500.0,0.0003041,5]
[326745339,1715297456993,-150.0,0.0003041,5]
[326745340,1715297457003,-653.33,0.0003041,5]
[326745341,1715297457018,-584.96,0.0003041,5]
[326745342,1715297457026,-1075.64,0.0003041,5]
[326745343,1715297457035,-500.0,0.0003041,5]
[326745344,1715297457044,-808.68,0.0003041,5]
[326745345,1715297457055,-536.32,0.0003041,5]
[326745346,1715297457064,-636.82,0.0003041,5]
[326745347,1715297457073,-500.0,0.0003041,5]
[326745348,1715297457082,-500.0,0.0003041,5]
[326745349,1715297457093,-680.22,0.0003041,5]
[326745350,1715297457103,-151.0,0.0003041,7]
[326745351,1715297457112,-500.0,0.0003041,5]
[326745352,1715297457121,-527.84,0.0003041,5]
[326745353,1715297457130,-500.0,0.0003041,5]
[326745354,1715297457139,-500.0,0.0003041,5]
[326745355,1715297457148,-710.23,0.0003041,5]
[326745356,1715297457157,-500.0,0.0003041,5]
[326745357,1715297457166,-500.0,0.0003041,5]
[326745358,1715297457175,-500.0,0.0003041,5]
[326745359,1715297457185,-500.0,0.0003041,5]
[326745360,1715297457194,-500.0,0.0003041,5]
[326745361,1715297457203,-500.0,0.0003041,5]
[326745362,1715297457212,-500.0,0.0003041,5]
[326745363,1715297457222,-1011.61,0.0003041,5]
[326745364,1715297457231,-644.49,0.0003041,5]
[326745365,1715297457240,-500.0,0.0003041,5]
[326745366,1715297457250,-1818.74,0.0003041,5]
[326745367,1715297457259,-233.455304,0.0003041,7]
[326745368,1715297457268,-500.0,0.0003041,5]
[326745369,1715297457277,-407.3964532,0.0003041,5]
[326745370,1715297457287,-153.464676,0.0003041,7]
[326745371,1715297457296,-500.0,0.0003041,5]
[326745372,1715297457305,-500.0,0.0003041,5]
[326745373,1715297457314,-500.0,0.0003041,5]
[326745374,1715297457323,-528.41103522,0.0003041,5]
[326745375,1715297457332,-824.76,0.0003041,5]
[326745376,1715297457341,-1122.54,0.0003041,5]
[326745377,1715297457350,-515.33,0.0003041,5]
[326745378,1715297457360,-500.0,0.0003041,5]
[326745379,1715297457370,-581.67,0.0003041,5]
[326745380,1715297457379,-878.31,0.0003041,5]
[326745381,1715297457388,-744.62,0.0003041,5]
[326745382,1715297457397,-500.0,0.0003041,5]
[326745383,1715297457407,-500.0,0.0003041,5]
[326745384,1715297457416,-395.83402124,0.0003041,5]
[326745385,1715297457427,-500.0,0.0003041,5]
[326745386,1715297457436,-202.7829884,0.0003041,5]
[326745387,1715297457445,-706.76,0.0003041,5]
[326745388,1715297457454,-500.0,0.0003041,5]
[326745389,1715297457463,-500.0,0.0003041,5]
[326745390,1715297457472,-1110.14,0.0003041,5]
[326745391,1715297457481,-500.0,0.0003041,5]
[326745392,1715297457490,-500.0,0.0003041,5]
[326745393,1715297457500,-500.0,0.0003041,5]
[326745394,1715297457509,-1787.68,0.0003041,5]
[326745395,1715297457519,-500.0,0.0003041,5]
[326745396,1715297457529,-500.0,0.0003041,5]
[326745397,1715297457538,-500.0,0.0003041,5]
[326745398,1715297457547,-500.0,0.0003041,5]
[326745399,1715297457556,-500.0,0.0003041,5]
[326745400,1715297457566,-500.0,0.0003041,5]
[326745401,1715297457575,-151.0,0.0003041,7]
[326745402,1715297457585,-152.059216,0.0003041,7]
[326745403,1715297457594,-2155.46,0.0003041,5]
[326745404,1715297457603,-500.0,0.0003041,5]
[326745405,1715297457612,-500.0,0.0003041,5]
[326745406,1715297457621,-500.0,0.0003041,5]
[326745407,1715297457630,-335.48353968,0.0003041,5]
[326745408,1715297457639,-500.0,0.0003041,5]
[326745409,1715297457648,-2057.96,0.0003041,5]
[326745410,1715297457657,-500.0,0.0003041,5]
[326745411,1715297457666,-1235.53,0.0003041,5]
[326745412,1715297457676,-500.0,0.0003041,5]
[326745413,1715297457685,-500.0,0.0003041,5]
[326745414,1715297457694,-500.0,0.0003041,5]
[326745415,1715297457703,-500.0,0.0003041,5]
[326745416,1715297457713,-500.0,0.0003041,5]
[326745417,1715297457722,-508.33,0.0003041,5]
[326745418,1715297457731,-578.43,0.0003041,5]
[326745419,1715297457741,-500.0,0.0003041,5]
[326745420,1715297457751,-282.77125221,0.0003041,5]
[326745421,1715297457760,-500.0,0.0003041,5]
[326745422,1715297457769,-500.0,0.0003041,5]
[326745423,1715297457778,-500.0,0.0003041,5]
[326745424,1715297457788,-500.0,0.0003041,5]
[326745425,1715297457798,-500.0,0.0003041,5]
[326745426,1715297457808,-520.64655986,0.0003041,5]
[326745427,1715297457818,-500.0,0.0003041,5]
[326745428,1715297457829,-500.0,0.0003041,5]
[326745429,1715297457838,-500.0,0.0003041,5]
[326745430,1715297457847,-410.88642997,0.0003041,5]
[326745431,1715297457856,-500.0,0.0003041,5]
[326745432,1715297457866,-500.0,0.0003041,5]
[326745433,1715297457875,-2218.39,0.0003041,5]
[326745434,1715297457884,-1446.56,0.0003041,5]
[326745435,1715297457893,-500.0,0.0003041,5]
[326745436,1715297457902,-500.0,0.0003041,5]
[326745437,1715297457911,-500.0,0.0003041,5]
[326745438,1715297457919,-500.0,0.0003041,5]
[326745439,1715297457929,-702.6,0.0003041,5]
[326745440,1715297457938,-500.0,0.0003041,5]
[326745441,1715297457947,-427.9185134,0.0003041,5]
[326745442,1715297457956,-718.96,0.0003041,5]
[326745443,1715297457965,-500.0,0.0003041,5]
[326745444,1715297457974,-2337.83,0.0003041,5]
[326745445,1715297457983,-500.0,0.0003041,5]
[326745446,1715297457992,-191.026066,0.0003041,7]
[326745447,1715297458001,-500.0,0.0003041,5]
[326745448,1715297458013,-1006.85034684,0.0003041,5]
[326745449,1715297458022,-765.35,0.0003041,5]
[326745450,1715297458031,-500.0,0.0003041,5]
[326745451,1715297458040,-1265.93,0.0003041,5]
[326745452,1715297458050,-423.17435613,0.0003041,5]
[326745453,1715297458059,-502.9,0.0003041,5]
[326745454,1715297458068,-500.0,0.0003041,5]
[326745455,1715297458078,-500.0,0.0003041,5]
[326745456,1715297458088,-888.22,0.0003041,5]
[326745457,1715297458098,-1538.92,0.0003041,5]
[326745458,1715297458107,-500.0,0.0003041,5]
[326745459,1715297458117,-500.0,0.0003041,5]
[326745460,1715297458126,-1668.75,0.0003041,5]
[326745461,1715297458135,-1116.57,0.0003041,5]
[326745462,1715297458144,-842.18,0.0003041,5]
[326745463,1715297458153,-1250.4,0.0003041,5]
[326745464,1715297458163,-1654.84,0.0003041,5]
[326745465,1715297458172,-500.0,0.0003041,5]
[326745466,1715297458180,-1344.41,0.0003041,5]
[326745467,1715297458190,-500.0,0.0003041,5]
[326745468,1715297458199,-500.0,0.0003041,5]
[326745469,1715297458208,-500.0,0.0003041,5]
[326745470,1715297458217,-1915.45,0.0003041,5]
[326745471,1715297458226,-683.17,0.0003041,5]
[326745472,1715297458235,-1857.39,0.0003041,5]
[326745473,1715297458244,-641.12,0.0003041,5]
[326745474,1715297458253,-687.97,0.0003041,5]
[326745475,1715297458263,-151.0,0.0003041,7]
[326745476,1715297458272,-1314.13,0.0003041,5]
[326745477,1715297458281,-151.0,0.0003041,7]
[326745478,1715297458291,-961.48,0.0003041,5]
[326745479,1715297458301,-2774.58,0.0003041,5]
[326745480,1715297458310,-500.0,0.0003041,5]
[326745481,1715297458319,-500.0,0.0003041,5]
[326745482,1715297458328,-500.0,0.0003041,5]
[326745483,1715297458338,-1270.75,0.0003041,5]
[326745484,1715297458347,-3000.0,0.0003041,5]
[326745485,1715297458356,-151.0,0.0003041,7]
[326745486,1715297458365,-705.0,0.0003041,5]
[326745487,1715297458374,-151.0,0.0003041,7]
[326745488,1715297458384,-636.76,0.0003041,5]
[326745489,1715297458393,-1154.34,0.0003041,5]
[326745490,1715297458402,-2507.23,0.0003041,5]
[326745491,1715297458411,-756.92,0.0003041,5]
[326745492,1715297458420,-2178.56,0.0003041,5]
[326745493,1715297458429,-925.37,0.0003041,5]
[326745494,1715297458439,-500.0,0.0003041,5]
[326745495,1715297458448,-500.0,0.0003041,5]
[326745496,1715297458457,-151.0,0.0003041,7]
[326745497,1715297458466,-151.0,0.0003041,7]
[326745498,1715297458475,-500.0,0.0003041,5]
[326745499,1715297458484,-500.0,0.0003041,5]
[326745500,1715297458494,-500.0,0.0003041,5]
[326745501,1715297458503,-151.0,0.0003041,7]
[326745502,1715297458513,-624.36,0.0003041,5]
[326745503,1715297458522,-151.0,0.0003041,7]
[326745504,1715297458531,-500.0,0.0003041,5]
[326745505,1715297458540,-1275.69,0.0003041,5]
[326745506,1715297458549,-2358.15,0.0003041,5]
[326745507,1715297458558,-646.74,0.0003041,5]
[326745508,1715297458567,-565.47,0.0003041,5]
[326745509,1715297458576,-1187.26,0.0003041,5]
[326745510,1715297458585,-1634.05,0.0003041,5]
[326745511,1715297458594,-3322.37,0.0003041,5]
[326745512,1715297458603,-630.81,0.0003041,5]
[326745513,1715297458612,-507.76,0.0003041,5]
[326745514,1715297458622,-2028.74,0.0003041,5]
[326745515,1715297458631,-500.0,0.0003041,5]
[326745516,1715297458640,-500.0,0.0003041,5]
[326745517,1715297458649,-500.0,0.0003041,5]
[326745518,1715297458658,-157.932236,0.0003041,7]
[326745519,1715297458668,-157.932236,0.0003041,7]
[326745520,1715297458677,-1292.29,0.0003041,5]
[326745521,1715297458686,-2622.15,0.0003041,5]
[326745522,1715297458695,-500.0,0.0003041,5]
[326745523,1715297458704,-500.0,0.0003041,5]
[326745524,1715297458713,-2351.92,0.0003041,5]
[326745525,1715297458722,-1625.02,0.0003041,5]
[326745526,1715297458731,-157.932236,0.0003041,7]
[326745527,1715297458740,-157.932236,0.0003041,7]
[326745528,1715297458749,-500.0,0.0003041,5]
[326745529,1715297458759,-500.0,0.0003041,5]
[326745530,1715297458768,-500.0,0.0003041,5]
[326745531,1715297458778,-151.0,0.0003041,7]
[326745532,1715297458787,-151.0,0.0003041,7]
[326745533,1715297458796,-151.0,0.0003041,7]
[326745534,1715297458805,-1675.77,0.0003041,5]
[326745535,1715297458815,-500.0,0.0003041,5]
[326745536,1715297458824,-151.0,0.0003041,7]
[326745537,1715297458833,-1217.3,0.0003041,5]
[326745538,1715297458842,-807.83,0.0003041,5]
[326745539,1715297458852,-500.0,0.0003041,5]
[326745540,1715297458861,-500.85062852,0.0003041,5]
[326745541,1715297458870,-500.0,0.0003041,5]
[326745542,1715297458879,-2861.03,0.0003041,5]
[326745543,1715297458889,-500.0,0.0003041,5]
[326745544,1715297458898,-500.0,0.0003041,5]
[326745545,1715297458908,-1072.38,0.0003041,5]
[326745546,1715297458919,-500.0,0.0003041,5]
[326745547,1715297458929,-737.54,0.0003041,5]
[326745548,1715297458938,-500.0,0.0003041,5]
[326745549,1715297458949,-387.15255332,0.0003041,5]
[326745550,1715297458958,-635.16,0.0003041,5]
[326745551,1715297458968,-151.0,0.0003041,7]
[326745552,1715297458977,-500.0,0.0003041,5]
[326745553,1715297458987,-151.0,0.0003041,7]
[326745554,1715297458997,-1723.47,0.0003041,5]
[326745555,1715297459007,-500.0,0.0003041,5]
[326745556,1715297459022,-710.59,0.0003041,5]
[326745557,1715297459031,-305.69589642,0.0003041,5]
[326745558,1715297459041,-500.0,0.0003041,5]
[326745559,1715297459050,-500.0,0.0003041,5]
[326745560,1715297459060,-2265.73,0.0003041,5]
[326745561,1715297459070,-2107.35,0.0003041,5]
[326745562,1715297459081,-500.0,0.0003041,5]
[326745563,1715297459090,-1544.27,0.0003041,5]
[326745564,1715297459099,-500.0,0.0003041,5]
[326745565,1715297459109,-500.0,0.0003041,5]
[326745566,1715297459119,-221.810504,0.0003041,7]
[326745567,1715297459128,-3520.34,0.0003041,5]
[326745568,1715297459138,-1431.08,0.0003041,5]
[326745569,1715297459148,-500.0,0.0003041,2]
[326745570,1715297459158,-500.0,0.0003041,5]
[326745571,1715297459169,-500.0,0.0003041,5]
[326745572,1715297459179,-515.12,0.0003041,5]
[326745573,1715297459190,-1386.16,0.0003041,5]
[326745574,1715297459202,-210.447446,0.0003041,7]
[326745575,1715297459211,-500.0,0.0003041,5]
[326745576,1715297459220,-1371.64,0.0003041,5]
[326745577,1715297459229,-500.0,0.0003041,5]
[326745578,1715297459239,-151.0,0.0003041,7]
[326745579,1715297459248,-833.61,0.0003041,5]
[326745580,1715297459260,-1135.42,0.0003041,5]
[326745581,1715297459270,-500.0,0.0003041,5]
[326745582,1715297459279,-697.35,0.0003041,5]
[326745583,1715297459289,-1148.26,0.0003041,5]
[326745584,1715297459298,-570.78,0.0003041,5]
[326745585,1715297459307,-500.0,0.0003041,5]
[326745586,1715297459316,-1003.43,0.0003041,5]
[326745587,1715297459326,-500.0,0.0003041,5]
[326745588,1715297459335,-1271.35,0.0003041,5]
[326745589,1715297459344,-1107.12,0.0003041,5]
[326745590,1715297459354,-519.023167,0.0003041,5]
[326745591,1715297459364,-1705.53,0.0003041,5]
[326745592,1715297459373,-519.12,0.0003041,5]
[326745593,1715297459382,-500.0,0.0003041,5]
[326745594,1715297459391,-500.0,0.0003041,5]
[326745595,1715297459400,-500.0,0.0003041,5]
[326745596,1715297459410,-500.0,0.0003041,5]
[326745597,1715297459419,-500.0,0.0003041,5]
[326745598,1715297459428,-500.0,0.0003041,5]
[326745599,1715297459438,-500.0,0.0003041,5]
[326745600,1715297459447,-500.0,0.0003041,5]
[326745601,1715297459456,-3395.6,0.0003041,5]
[326745602,1715297459465,-500.0,0.0003041,5]
[326745603,1715297459474,-500.0,0.0003041,5]
[326745604,1715297459483,-500.0,0.0003041,5]
[326745605,1715297459492,-887.35,0.0003041,5]
[326745606,1715297459502,-500.0,0.0003041,5]
[326745607,1715297459511,-500.0,0.0003041,5]
[326745608,1715297459520,-2406.31,0.0003041,5]
[326745609,1715297459529,-1956.6,0.0003041,5]
[326745610,1715297459539,-500.0,0.0003041,5]
[326745611,1715297459548,-500.0,0.0003041,5]
[326745612,1715297459557,-151.0,0.0003041,7]
[326745613,1715297459566,-151.0,0.0003041,7]
[326745614,1715297459575,-2873.61,0.0003041,5]
[326745615,1715297459584,-500.0,0.0003041,5]
[326745616,1715297459593,-1893.29,0.0003041,5]
[326745617,1715297459602,-1000.0,0.0003041,5]
[326745618,1715297459612,-2277.69,0.0003041,5]
[326745619,1715297459621,-882.28,0.0003041,5]
[326745620,1715297459631,-500.0,0.0003041,5]
[326745621,1715297459640,-500.0,0.0003041,5]
[326745622,1715297459651,-935.53,0.0003041,5]
[326745623,1715297459660,-522.83,0.0003041,5]
[326745624,1715297459669,-500.0,0.0003041,5]
[326745625,1715297459679,-500.0,0.0003041,5]
[326745626,1715297459689,-500.0,0.0003041,5]
[326745627,1715297459701,-1278.41,0.0003041,5]
[326745628,1715297459710,-151.99111,0.0003041,7]
[326745629,1715297459719,-825.67,0.0003041,5]
[326745630,1715297459730,-500.0,0.0003041,5]
[326745631,1715297459741,-500.0,0.0003041,5]
[326745632,1715297459751,-1430.53,0.0003041,5]
[326745633,1715297459761,-668.05,0.0003041,5]
[326745634,1715297459770,-1823.72,0.0003041,5]
[326745635,1715297459779,-500.0,0.0003041,5]
[326745636,1715297459789,-151.0,0.0003041,7]
[326745637,1715297459798,-500.0,0.0003041,5]
[326745638,1715297459810,-151.0,0.0003041,7]
[326745639,1715297459819,-500.0,0.0003041,5]
[326745640,1715297459831,-1142.6,0.0003041,5]
[326745641,1715297459840,-1726.72,0.0003041,5]
[326745642,1715297459850,-1109.58,0.0003041,5]
[326745643,1715297459859,-1014.73,0.0003041,5]
[326745644,1715297459869,-500.0,0.0003041,5]
[326745645,1715297459879,-1440.2,0.0003041,5]
[326745646,1715297459888,-650.7,0.0003041,5]
[326745647,1715297459897,-500.0,0.0003041,5]
[326745648,1715297459907,-151.0,0.0003041,7]
[326745649,1715297459916,-1201.47,0.0003041,5]
[326745650,1715297459925,-151.0,0.0003041,7]
[326745651,1715297459935,-500.0,0.0003041,5]
[326745652,1715297459944,-1085.28,0.0003041,5]
[326745653,1715297459953,-1198.9,0.0003041,5]
[326745654,1715297459962,-890.62,0.0003041,5]
[326745655,1715297459971,-500.0,0.0003041,5]
[326745656,1715297459981,-500.0,0.0003041,5]
[326745657,1715297459990,-500.0,0.0003041,5]
[326745658,1715297460000,-500.0,0.0003041,5]
[326745659,1715297460014,-500.0,0.0003041,5]
[326745660,1715297460025,-500.0,0.0003041,5]
[326745661,1715297460034,-500.0,0.0003041,5]
[326745662,1715297460045,-950.51,0.0003041,5]
[326745663,1715297460055,-831.05,0.0003041,5]
[326745664,1715297460065,-500.0,0.0003041,5]
[326745665,1715297460074,-500.0,0.0003041,5]
[326745666,1715297460085,-500.0,0.0003041,5]
[326745667,1715297460096,-1027.3,0.0003041,5]
[326745668,1715297460105,-151.0,0.0003041,7]
[326745669,1715297460114,-500.0,0.0003041,5]
[326745670,1715297460123,-500.0,0.0003041,5]
[326745671,1715297460133,-500.0,0.0003041,5]
[326745672,1715297460142,-500.0,0.0003041,5]
[326745673,1715297460153,-500.0,0.0003041,5]
[326745674,1715297460164,-151.0,0.0003041,7]
[326745675,1715297460174,-1179.31,0.0003041,5]
[326745676,1715297460183,-500.0,0.0003041,5]
[326745677,1715297460193,-500.0,0.0003041,5]
[326745678,1715297460202,-836.3,0.0003041,5]
[326745679,1715297460211,-1418.73,0.0003041,5]
[326745680,1715297460221,-861.26,0.0003041,5]
[326745681,1715297460230,-1576.12,0.0003041,5]
[326745682,1715297460239,-500.0,0.0003041,5]
[326745683,1715297460249,-500.0,0.0003041,5]
[326745684,1715297460258,-500.0,0.0003041,5]
[326745685,1715297460269,-500.0,0.0003041,5]
[326745686,1715297460278,-500.0,0.0003041,5]
[326745687,1715297460288,-202.79260106,0.0003041,5]
[326745688,1715297460297,-500.0,0.0003041,5]
[326745689,1715297460306,-500.0,0.0003041,5]
[326745690,1715297460316,-1503.77,0.0003041,5]
[326745691,1715297460326,-1281.56,0.0003041,5]
[326745692,1715297460335,-1467.72,0.0003041,5]
[326745693,1715297460345,-500.0,0.0003041,5]
[326745694,1715297460355,-1578.77,0.0003041,5]
[326745695,1715297460364,-500.0,0.0003041,5]
[326745696,1715297460374,-500.0,0.0003041,5]
[326745697,1715297460384,-500.0,0.0003041,5]
[326745698,1715297460394,-1342.61,0.0003041,5]
[326745699,1715297460404,-743.91,0.0003041,5]
[326745700,1715297460414,-500.0,0.0003041,5]